bitfinex-derivatives/quotes_SOLF0:USTF0_20240910
["timestamp","ask_amount","ask_price","bid_price","bid_amount"]
[1725959103841,9.15,134.46,134.39,9.15]
[1725959104135,9.15,134.46,134.41,9.15]
[1725959104327,9.15,134.46,134.41,12.8696]
[1725959104328,3.7188,134.45,134.41,12.8696]
[1725959104530,9.15,134.47,134.41,9.15]
[1725959105029,3.7185,134.46,134.42,3.7194]
[1725959106123,12.8685,134.46,134.42,3.7194]
[1725959106527,9.15,134.48,134.42,9.15]
[1725959107128,3.7183,134.47,134.42,12.92185285]
[1725959107631,9.15,134.5,134.44,9.15]
[1725959107833,3.7179,134.48,134.44,12.8687]
[1725959108737,3.7176,134.49,134.45,9.15]
[1725959110132,3.7176,134.49,134.46,3.7183]
[1725959112833,3.7176,134.49,134.46,12.8683]
[1725959113230,3.7172,134.5,134.47,3.7179]
[1725959113431,3.7172,134.5,134.46,9.15]
[1725959113432,9.15,134.52,134.46,9.15]
[1725959114040,3.7171,134.51,134.46,9.15]
[1725959114539,3.7171,134.51,134.47,3.7179]
[1725959114727,3.7171,134.51,134.46,9.15]
[1725959115132,3.7171,134.51,134.48,3.7177]
[1725959115843,3.7168,134.52,134.48,3.7177]
[1725959116140,3.7168,134.52,134.49,3.7175]
[1725959117736,9.15,134.56,134.5,9.15]
[1725959118244,3.7168,134.52,134.5,9.15]
[1725959119138,3.717,134.51,134.49,9.15]
[1725959120244,3.7172,134.5,134.49,9.15]
[1725959120439,3.7172,134.5,134.48,9.15]
[1725959121038,22.34,134.58,134.49,9.15]
[1725959121247,22.34,134.58,134.44,4.0625]
[1725959121248,9.15,134.58,134.52,9.15]
[1725959122237,26.08916025,134.6,134.5,12.78464802]
[1725959122238,9.15,134.57,134.5,12.78464802]
[1725959122443,9.15,134.55,134.5,9.15]
[1725959123135,31.49,134.55,134.5,9.15]
[1725959123341,3.7168,134.52,134.5,9.15]
[1725959125144,3.7175,134.49,134.46,3.7182]
[1725959125353,3.7175,134.49,134.47,9.15]
[1725959125950,3.7174,134.5,134.47,9.15]
[1725959126346,22.34,134.53,134.47,9.15]
[1725959126753,3.7177,134.49,134.47,9.15]
[1725959127750,3.7178,134.48,134.47,9.15]
[1725959127940,9.15,134.51,134.46,9.15]
[1725959128346,3.718,134.48,134.46,9.15]
[1725959133455,3.7176,134.49,134.46,9.15]
[1725959133652,9.15,134.54,134.48,9.15]
[1725959133953,31.49,134.54,134.48,9.15]
[1725959134363,3.7172,134.51,134.48,9.15]
[1725959134749,3.7172,134.51,134.48,12.8678]
[1725959135760,3.7173,134.5,134.48,9.15]
[1725959137763,3.7171,134.51,134.48,12.8678]
[1725959140155,3.7171,134.51,134.49,3.7175]
[1725959140456,3.7171,134.51,134.48,9.15]
[1725959140656,3.7167,134.52,134.5,9.15]
[1725959143660,3.7166,134.53,134.5,16.67753841]
[1725959143860,22.34,134.56,134.51,9.15]
[1725959144057,3.7163,134.54,134.51,11.8939]
[1725959144564,3.7163,134.54,134.51,15.59100924]
[1725959145271,22.34,134.57,134.51,15.59100924]
[1725959145467,31.49,134.57,134.51,15.59100924]
[1725959146158,3.7158,134.56,134.51,19.30770924]
[1725959146361,31.49,134.57,134.51,15.59100924]
[1725959146963,3.7161,134.54,134.51,19.30780924]
[1725959147772,3.716,134.55,134.52,3.7166]
[1725959148869,3.7162,134.54,134.52,3.7166]
[1725959150966,22.34,134.59,134.54,3.7161]
[1725959151161,22.34,134.6,134.54,12.8661]
[1725959151371,3.7155,134.57,134.54,12.8661]
[1725959152675,9.15,134.59,134.54,9.15]
[1725959153385,3.7155,134.57,134.54,12.8661]
[1725959153570,3.7155,134.57,134.54,9.15]
[1725959153864,22.34,134.6,134.54,9.15]
[1725959154065,3.7152,134.58,134.56,9.15]
[1725959155961,22.34,134.62,134.57,9.15]
[1725959156671,3.7146,134.6,134.57,12.8653]
[1725959157175,22.34,134.66,134.58,9.15]
[1725959157474,3.7144,134.61,134.58,12.8649]
[1725959157679,18.106,134.64,134.59,12.9464535]
[1725959157864,18.106,134.64,134.59,9.15]
[1725959158068,18.106,134.64,134.58,9.15]
[1725959158268,18.106,134.64,134.58,12.95425825]
[1725959158269,27.256,134.64,134.58,12.95425825]
[1725959158765,3.7143,134.61,134.58,16.66925825]
[1725959159270,27.256,134.64,134.58,9.15]
[1725959159271,3.7145,134.6,134.58,9.15]
[1725959159578,3.7145,134.6,134.56,9.15]
[1725959159773,3.7143,134.61,134.56,9.15]
[1725959160073,13.872,134.62,134.58,9.15]
[1725959160469,3.7147,134.6,134.58,9.15]
[1725959161373,9.15,134.64,134.58,12.86460434]
[1725959161374,31.49,134.64,134.58,12.86460434]
[1725959161773,3.714,134.62,134.58,16.57940434]
[1725959162574,3.7142,134.61,134.58,16.57940434]
[1725959163483,3.7146,134.6,134.58,9.15]
[1725959163667,31.49,134.64,134.58,12.83487859]
[1725959163871,31.49,134.64,134.58,16.54987859]
[1725959165075,3.7144,134.61,134.58,16.54987859]
[1725959165674,31.49,134.64,134.6,3.7143]
[1725959165882,31.49,134.64,134.59,9.15]
[1725959166279,3.7141,134.62,134.59,9.15]
[1725959167884,3.7137,134.63,134.6,9.15]
[1725959168085,22.34,134.66,134.6,9.15]
[1725959168571,22.34,134.66,134.6,12.8643]
[1725959168572,3.7135,134.64,134.6,12.8643]
[1725959169277,3.7135,134.64,134.59,1.3743]
[1725959169278,9.15,134.67,134.62,9.15]
[1725959169485,22.34,134.67,134.62,9.15]
[1725959170781,3.7134,134.64,134.62,9.15]
[1725959171982,3.7133,134.65,134.62,12.8639]
[1725959172283,22.34,134.67,134.62,9.15]
[1725959174186,3.7135,134.64,134.62,9.15]
[1725959175282,3.7136,134.63,134.62,9.15]
[1725959175492,31.49,134.66,134.6,9.15]
[1725959175780,3.7138,134.63,134.6,12.8645]
[1725959176374,3.7139,134.62,134.6,9.15]
[1725959177282,31.49,134.66,134.59,2.7758]
[1725959177483,31.49,134.66,134.6,9.15]
[1725959177984,31.49,134.66,134.61,9.15]
[1725959178676,3.7138,134.63,134.61,9.15]
[1725959178877,3.7138,134.63,134.59,2.7758]
[1725959178878,1.3074,134.68,134.62,9.15]
[1725959179087,1.3074,134.68,134.64,9.15]
[1725959179984,3.7128,134.67,134.64,12.8633]
[1725959180384,3.7128,134.67,134.65,9.15]
[1725959182077,3.7128,134.66,134.65,9.15]
[1725959182287,1.3074,134.68,134.64,9.15]
[1725959182593,3.7129,134.66,134.64,9.15]
[1725959183087,22.34,134.7,134.64,9.15]
[1725959183490,3.7127,134.67,134.64,12.8633]
[1725959184188,3.7124,134.68,134.66,9.15]
[1725959184384,22.34,134.71,134.67,9.15]
[1725959184594,1.11820128,134.7,134.67,9.15]
[1725959184888,3.7122,134.69,134.67,9.15]
[1725959185286,23.6172,134.72,134.67,9.15]
[1725959185487,3.7119,134.7,134.67,12.8625]
[1725959185689,1.11811129,134.69,134.67,9.15]
[1725959185883,23.6172,134.72,134.67,9.15]
[1725959186085,3.7119,134.7,134.68,9.15]
[1725959186285,1.11816679,134.69,134.68,9.15]
[1725959187684,4.83016679,134.69,134.68,9.15]
[1725959187878,4.82998036,134.69,134.68,9.15]
[1725959189783,3.712,134.69,134.68,9.15]
[1725959190682,4.83026582,134.69,134.68,9.15]
[1725959191084,3.712,134.69,134.68,9.15]
[1725959196394,3.7118,134.7,134.68,9.15]
[1725959196595,135.47499828,134.74,134.69,9.15]
[1725959196788,135.47499828,134.74,134.71,9.15]
[1725959198090,3.7114,134.72,134.71,9.15]
[1725959200090,3.7111,134.73,134.71,12.8614]
[1725959200291,22.34,134.77,134.72,9.15]
[1725959200491,1.11761874,134.76,134.72,9.15]
[1725959200693,3.7109,134.73,134.72,9.15]
[1725959200894,1.11761874,134.73,134.72,12.8612]
[1725959201092,3.7108,134.74,134.72,9.15]
[1725959201293,1.11761874,134.73,134.72,9.15]
[1725959201602,22.34,134.76,134.71,9.15]
[1725959201798,1.11778126,134.75,134.71,9.15]
[1725959202601,3.7112,134.72,134.71,9.15]
[1725959203094,31.49,134.75,134.68,5.0706]
[1725959203402,1.11775444,134.74,134.7,9.15]
[1725959203897,3.7109,134.73,134.72,9.15]
[1725959204202,4.82865444,134.73,134.72,9.15]
[1725959204388,4.8286312,134.73,134.72,9.15]
[1725959204791,3.7109,134.73,134.72,9.15]
[1725959211401,22.34,134.74,134.68,1.3585]
[1725959211596,22.34,134.74,134.69,9.15]
[1725959211597,1.11824561,134.73,134.69,9.15]
[1725959212006,3.7119,134.7,134.69,9.15]
[1725959212201,3.7119,134.7,134.67,1.323]
[1725959212202,22.34,134.72,134.67,9.15]
[1725959212607,22.34,134.72,134.67,12.95550089]
[1725959212814,22.34,134.72,134.68,9.15]
[1725959213002,3.7119,134.7,134.68,9.15]
[1725959213204,22.34,134.72,134.68,9.15]
[1725959213408,1.11830409,134.71,134.68,9.15]
[1725959213915,3.7119,134.7,134.68,9.15]
[1725959215212,3.7115,134.71,134.68,12.8623]
[1725959215414,3.7115,134.71,134.7,9.15]
[1725959215609,4.82983128,134.71,134.7,9.15]
[1725959215818,3.7115,134.71,134.7,9.15]
[1725959216009,4.82984336,134.71,134.7,9.15]
[1725959216515,4.82980152,134.71,134.7,9.15]
[1725959217706,1.11830152,134.71,134.7,9.15]
[1725959219315,3.7113,134.72,134.7,9.15]
[1725959219615,1.11853888,134.71,134.7,9.15]
[1725959221417,1.3103,134.75,134.68,2.6206]
[1725959221418,22.34,134.73,134.68,2.6206]
[1725959221620,22.34,134.73,134.68,10.4605]
[1725959221821,3.712,134.69,134.68,9.15]
[1725959222015,3.712,134.69,134.66,3.7127]
[1725959222322,3.712,134.69,134.68,9.15]
[1725959223113,22.34,134.72,134.66,9.15]
[1725959223314,22.34,134.7,134.68,9.15]
[1725959223620,22.34,134.7,134.66,9.15]
[1725959224120,3.7125,134.67,134.66,9.15]
[1725959229527,3.713,134.66,134.65,9.15]
[1725959236634,3.7127,134.67,134.65,9.15]
[1725959236830,3.7127,134.67,134.66,9.15]
[1725959237931,22.34,134.71,134.66,12.8628]
[1725959238132,22.34,134.71,134.68,9.15]
[1725959238726,19.20368553,134.73,134.7,9.15]
[1725959238727,41.54368553,134.73,134.7,9.15]
[1725959239034,1.3259,134.74,134.7,9.15]
[1725959239835,3.7114,134.71,134.7,9.15]
[1725959241334,3.7113,134.72,134.7,9.15]
[1725959241930,3.7111,134.73,134.7,9.15]
[1725959242129,3.7111,134.73,134.72,9.15]
[1725959243026,3.7108,134.74,134.72,9.15]
[1725959243440,19.2093882,134.76,134.72,12.8611]
[1725959243643,3.7101,134.76,134.73,9.15]
[1725959243830,19.2093882,134.77,134.75,9.15]
[1725959244028,1.3573,134.82,134.76,9.15]
[1725959244332,23.45895496,134.81,134.76,9.15]
[1725959244531,1.11895496,134.8,134.78,9.15]
[1725959244932,1.11895496,134.8,134.79,9.15]
[1725959245429,22.34,134.83,134.79,9.15]
[1725959245632,1.11918459,134.82,134.79,9.15]
[1725959246433,22.34,134.83,134.79,9.15]
[1725959246645,20.34257202,134.82,134.79,9.15]
[1725959246848,32.031319,134.82,134.79,9.15]
[1725959247135,32.031319,134.82,134.75,3.9961]
[1725959247136,19.22328817,134.82,134.75,3.9961]
[1725959247345,1.11924224,134.81,134.78,9.15]
[1725959247535,3.709,134.8,134.77,9.15]
[1725959247745,32.03184671,134.82,134.77,9.15]
[1725959248242,3.7091,134.8,134.75,3.9961]
[1725959248434,3.7091,134.8,134.77,9.15]
[1725959248631,9.15,134.81,134.75,13.1461]
[1725959248845,28.37328817,134.81,134.75,13.1461]
[1725959249048,32.02948738,134.8,134.75,13.1461]
[1725959249341,19.22328817,134.79,134.75,13.1461]
[1725959249542,22.93278817,134.79,134.75,13.1461]
[1725959249840,3.7095,134.79,134.75,11.8121]
[1725959250445,3.7095,134.78,134.75,11.8121]
[1725959250937,32.02948738,134.8,134.75,11.8121]
[1725959251137,22.93278817,134.79,134.75,11.8121]
[1725959251336,32.02948738,134.8,134.75,11.8121]
[1725959251539,19.22328817,134.79,134.75,11.8121]
[1725959251736,12.80619921,134.8,134.75,11.8121]
[1725959251943,41.17948738,134.81,134.75,11.8121]
[1725959252137,3.7096,134.78,134.75,11.8121]
[1725959255347,3.7096,134.78,134.75,15.5224]
[1725959255535,1.3372,134.85,134.75,2.6621]
[1725959255536,3.7093,134.79,134.75,2.6621]
[1725959255838,3.7093,134.79,134.76,9.15]
[1725959256440,3.7091,134.8,134.76,12.8599]
[1725959256931,3.7091,134.8,134.78,9.15]
[1725959258139,3.7092,134.79,134.78,9.15]
[1725959260230,3.7091,134.8,134.78,9.15]
[1725959260837,3.7088,134.81,134.78,12.8595]
[1725959261339,22.34,134.83,134.78,12.8595]
[1725959261837,3.709,134.8,134.78,9.15]
[1725959262648,3.7092,134.79,134.78,9.15]
[1725959263440,19.20918131,134.81,134.78,9.15]
[1725959263441,3.7091,134.8,134.78,9.15]
[1725959264155,3.7091,134.8,134.75,2.6621]
[1725959264156,3.7092,134.79,134.76,12.8599]
[1725959264740,3.7092,134.79,134.77,3.7097]
[1725959265037,3.7091,134.8,134.77,3.7097]
[1725959266242,3.7091,134.8,134.77,12.8597]
[1725959269947,3.7094,134.79,134.77,9.15]
[1725959271047,3.7094,134.79,134.76,12.8599]
[1725959271347,31.49,134.81,134.76,9.15]
[1725959272449,31.49,134.81,134.75,1.2848]
[1725959273845,3.7101,134.76,134.75,1.2848]
[1725959274947,3.7099,134.77,134.75,4.995]
[1725959275151,3.7099,134.77,134.76,9.15]
[1725959278146,3.7095,134.78,134.76,9.15]
[1725959278342,3.7095,134.78,134.76,12.86]
[1725959279250,3.7095,134.78,134.76,9.15]
[1725959283657,3.7098,134.77,134.76,9.15]
[1725959283858,3.7098,134.77,134.75,1.2848]
[1725959284056,3.7101,134.76,134.75,1.2848]
[1725959284256,41.53242707,134.79,134.73,3.70667301]
[1725959284450,41.53242707,134.79,134.73,12.85667301]
[1725959284651,3.7105,134.75,134.73,12.85667301]
[1725959285256,22.34,134.78,134.72,3.7109]
[1725959285461,22.34,134.78,134.73,9.15]
[1725959285759,31.49,134.76,134.68,2.655]
[1725959286056,31.49,134.76,134.7,9.15]
[1725959286057,3.7114,134.71,134.7,9.15]
[1725959286356,3.7114,134.71,134.69,9.15]
[1725959286859,3.7113,134.72,134.69,12.862]
[1725959287063,22.34,134.75,134.7,9.15]
[1725959287260,22.34,134.76,134.7,9.15]
[1725959287460,3.7108,134.74,134.71,3.7113]
[1725959288262,3.711,134.73,134.7,12.8616]
[1725959289253,22.34,134.75,134.7,9.15]
[1725959289762,3.711,134.73,134.7,12.8616]
[1725959289963,22.34,134.75,134.68,2.655]
[1725959289964,22.34,134.75,134.71,9.15]
[1725959290259,22.29,134.78,134.74,9.15]
[1725959290462,3.7094,134.79,134.76,9.15]
[1725959290851,5.0212,134.8,134.76,12.8599]
[1725959291051,1.3121,134.8,134.76,12.8599]
[1725959291256,1.3121,134.8,134.76,9.15]
[1725959292066,23.6021,134.8,134.76,9.15]
[1725959292863,3.7094,134.79,134.76,12.86]
[1725959296158,1.3121,134.8,134.75,9.15]
[1725959296358,23.6021,134.8,134.75,9.15]
[1725959296673,3.7099,134.77,134.75,9.15]
[1725959297062,23.6021,134.8,134.75,9.15]
[1725959297265,23.6021,134.8,134.75,12.8602]
[1725959297266,3.7096,134.78,134.75,12.8602]
[1725959298467,3.7093,134.79,134.76,3.71]
[1725959298773,3.7093,134.79,134.76,12.86]
[1725959299267,32.7521,134.8,134.75,9.15]
[1725959299661,32.7521,134.8,134.68,2.655]
[1725959299867,32.7521,134.8,134.73,12.8607]
[1725959300170,32.7521,134.8,134.73,12.81714122]
[1725959300565,3.7098,134.77,134.74,3.7105]
[1725959300759,32.7521,134.8,134.75,9.15]
[1725959301869,32.7521,134.8,134.75,12.8602]
[1725959301870,3.7097,134.78,134.75,12.8602]
[1725959303575,3.7098,134.77,134.75,12.8602]
[1725959304472,3.7098,134.77,134.75,9.15]
[1725959305378,23.6021,134.8,134.75,9.15]
[1725959306075,3.7098,134.78,134.75,12.8602]
[1725959307069,3.7098,134.77,134.75,12.8602]
[1725959307262,23.6021,134.8,134.75,12.8602]
[1725959307873,3.7097,134.78,134.75,12.8602]
[1725959308766,3.7097,134.78,134.74,2.6112]
[1725959308767,3.7097,134.78,134.76,12.86]
[1725959308971,22.29,134.81,134.77,9.15]
[1725959309881,19.20283077,134.83,134.77,9.15]
[1725959309882,22.29,134.82,134.77,9.15]
[1725959310085,3.7094,134.79,134.77,9.15]
[1725959311970,3.7095,134.78,134.77,9.15]
[1725959312676,3.7095,134.78,134.76,9.15]
[1725959312977,3.7098,134.77,134.75,12.8602]
[1725959313279,41.49174098,134.79,134.75,9.15]
[1725959313476,22.29,134.79,134.75,9.15]
[1725959313679,3.7101,134.76,134.75,9.15]
[1725959314975,3.7103,134.75,134.74,1.3324]
[1725959315178,22.29,134.77,134.73,9.15]
[1725959315380,31.44,134.77,134.69,2.6773]
[1725959315685,3.711,134.73,134.71,9.15]
[1725959319185,3.7107,134.74,134.71,12.8614]
[1725959320484,3.7107,134.74,134.72,12.8612]
[1725959320893,3.7107,134.74,134.69,2.6773]
[1725959321187,3.7107,134.74,134.72,9.15]
[1725959323680,3.7109,134.73,134.72,9.15]
[1725959330385,22.29,134.76,134.71,9.15]
[1725959330586,22.29,134.75,134.69,6.3892]
[1725959330788,22.29,134.75,134.69,11.8273]
[1725959330789,50.64473653,134.75,134.69,11.8273]
[1725959330984,31.44,134.75,134.69,11.8273]
[1725959331290,3.7117,134.71,134.69,2.6773]
[1725959331489,3.7117,134.71,134.69,11.8273]
[1725959332595,3.7117,134.7,134.69,11.8273]
[1725959333594,3.7116,134.71,134.69,11.8273]
[1725959334093,3.7116,134.71,134.69,10.5562]
[1725959334296,3.7117,134.7,134.69,10.5562]
[1725959335393,3.7117,134.7,134.69,1.4062]
[1725959336793,3.7116,134.71,134.69,1.4062]
[1725959337691,3.7116,134.71,134.69,10.5562]
[1725959339291,3.7117,134.7,134.69,10.5562]
[1725959341201,3.7117,134.7,134.69,1.4062]
[1725959341400,22.29,134.71,134.64,2.7471]
[1725959341695,22.29,134.71,134.67,9.15]
[1725959341999,3.7122,134.69,134.67,9.15]
[1725959342186,22.29,134.71,134.67,9.15]
[1725959342385,9.15,134.7,134.65,1.3652]
[1725959342586,31.44,134.7,134.65,14.2282]
[1725959342889,31.44,134.7,134.65,17.93066583]
[1725959343593,3.7126,134.67,134.65,17.93066583]
[1725959344009,3.7123,134.68,134.65,17.93066583]
[1725959344392,3.7123,134.68,134.66,12.8628]
[1725959344595,1.3642,134.73,134.67,9.15]
[1725959344596,3.7119,134.7,134.67,9.15]
[1725959345192,3.7119,134.7,134.67,12.8624]
[1725959345593,3.712,134.69,134.67,9.15]
[1725959346906,1.3642,134.73,134.67,12.8624]
[1725959347207,32.8042,134.73,134.67,12.8624]
[1725959347992,32.8042,134.73,134.65,5.06766583]
[1725959347993,23.6542,134.73,134.68,9.15]
[1725959348198,22.29,134.74,134.7,9.15]
[1725959348399,3.7113,134.72,134.7,9.15]
[1725959349905,3.7114,134.71,134.69,9.15]
[1725959351803,3.7112,134.73,134.69,9.15]
[1725959352006,22.29,134.74,134.69,9.15]
[1725959352209,9.15,134.74,134.69,9.15]
[1725959352509,22.29,134.74,134.69,9.15]
[1725959353204,22.29,134.75,134.7,9.15]
[1725959353401,22.29,134.76,134.71,9.15]
[1725959354111,3.711,134.73,134.71,12.8614]
[1725959354307,3.711,134.73,134.71,9.15]
[1725959357710,3.7105,134.75,134.72,7.37730201]
[1725959357910,22.29,134.79,134.74,9.15]
[1725959358216,22.29,134.79,134.74,12.82251117]
[1725959358217,3.7102,134.76,134.74,12.82251117]
[1725959358419,3.7102,134.76,134.74,9.15]
[1725959358601,3.7102,134.76,134.74,12.79652817]
[1725959359008,7.4168,134.83,134.72,12.861]
[1725959359009,31.44,134.78,134.72,12.861]
[1725959359514,31.44,134.78,134.72,9.15]
[1725959359515,3.7108,134.74,134.72,9.15]
[1725959359809,3.7108,134.74,134.65,5.06766583]
[1725959359810,31.44,134.75,134.69,9.15]
[1725959360116,3.7115,134.71,134.69,9.15]
[1725959360914,31.44,134.72,134.65,5.06766583]
[1725959361121,31.44,134.7,134.65,10.5152]
[1725959361304,31.44,134.7,134.65,1.3652]
[1725959361511,3.7127,134.67,134.65,10.5152]
[1725959361717,3.7127,134.67,134.65,14.22705685]
[1725959362717,3.7127,134.67,134.65,10.5152]
[1725959362909,3.7123,134.68,134.65,10.5152]
[1725959363118,9.15,134.71,134.66,12.93778132]
[1725959363413,3.7122,134.69,134.66,12.93778132]
[1725959365123,3.7127,134.67,134.65,1.3652]
[1725959367421,3.7127,134.67,134.65,3.7152]
[1725959367822,9.15,134.7,134.65,12.8652]
[1725959368124,9.15,134.71,134.65,12.8652]
[1725959368520,3.7124,134.68,134.65,16.5781]
[1725959371218,3.7126,134.67,134.65,12.8652]
[1725959371424,9.15,134.7,134.65,3.7152]
[1725959372323,9.15,134.7,134.65,7.49815376]
[1725959373020,31.44,134.7,134.65,3.7152]
[1725959373221,31.44,134.69,134.65,2.35]
[1725959373423,31.44,134.67,134.65,2.35]
[1725959373618,3.7128,134.66,134.65,2.35]
[1725959374119,3.7128,134.66,134.65,4.25]
[1725959374727,35.1528,134.66,134.65,4.25]
[1725959375525,26.0028,134.66,134.65,4.25]
[1725959376137,3.7128,134.66,134.65,4.25]
[1725959377227,3.7126,134.67,134.65,4.25]
[1725959377729,9.15,134.69,134.65,4.25]
[1725959377932,31.44,134.69,134.65,4.25]
[1725959378730,31.44,134.69,134.66,0.61]
[1725959378921,31.44,134.69,134.66,1.69]
[1725959379322,31.44,134.69,134.66,6.17]
[1725959379534,3.7125,134.67,134.66,6.17]
[1725959380125,3.7124,134.68,134.66,6.17]
[1725959380333,22.29,134.69,134.66,6.17]
[1725959381235,3.7125,134.67,134.66,6.17]
[1725959386028,3.7125,134.67,134.66,8.52]
[1725959386931,22.4931,134.75,134.66,17.67]
[1725959387125,31.44,134.71,134.66,21.3827]
[1725959387330,31.44,134.71,134.66,17.67]
[1725959387529,31.44,134.71,134.66,8.52]
[1725959388434,3.7125,134.67,134.66,8.52]
[1725959390039,26.0025,134.67,134.66,8.52]
[1725959394335,3.7125,134.67,134.66,8.52]
[1725959397549,26.0025,134.67,134.66,8.3186]
[1725959397849,22.29,134.67,134.58,3.68487859]
[1725959398152,14.26,134.65,134.58,3.68487859]
[1725959398348,14.26,134.65,134.59,5.0405]
[1725959398652,14.26,134.65,134.6,1.9]
[1725959398953,3.7141,134.62,134.6,1.9]
[1725959399538,3.7142,134.61,134.6,1.9]
[1725959400145,36.55,134.65,134.6,1.9]
[1725959400455,36.55,134.62,134.6,1.9]
[1725959400654,3.7142,134.61,134.6,1.9]
[1725959400846,26.0042,134.61,134.6,1.9]
[1725959401452,3.7155,134.57,134.54,4.97759775]
[1725959401950,3.7155,134.57,134.54,1.3493]
[1725959402156,3.7156,134.56,134.54,1.3493]
[1725959402541,22.29,134.59,134.54,1.3493]
[1725959402746,3.7159,134.55,134.54,1.3493]
[1725959402943,14.26,134.58,134.48,14.26]
[1725959403146,14.26,134.58,134.49,1.2748]
[1725959403347,3.7161,134.55,134.51,3.7167]
[1725959403547,14.26,134.58,134.5,3.70633365]
[1725959403753,14.26,134.58,134.49,2.6526]
[1725959404058,14.26,134.58,134.5,3.76653277]
[1725959404253,14.26,134.58,134.49,2.6526]
[1725959404456,3.7163,134.54,134.5,3.7172]
[1725959404750,3.7163,134.54,134.5,7.42686617]
[1725959404957,36.55,134.58,134.49,2.6526]
[1725959405452,14.26,134.54,134.49,1.3778]
[1725959406151,14.26,134.56,134.49,1.3778]
[1725959406456,3.7165,134.53,134.49,5.0951]
[1725959406656,36.55,134.58,134.49,1.3778]
[1725959406950,36.55,134.58,134.49,2.6788]
[1725959407251,3.7162,134.54,134.5,3.7171]
[1725959408852,3.7162,134.54,134.51,3.7169]
[1725959409245,3.7162,134.54,134.49,2.6788]
[1725959409445,3.7162,134.54,134.5,3.7171]
[1725959411153,3.7162,134.54,134.51,3.7169]
[1725959411348,14.26,134.58,134.49,2.6788]
[1725959411555,3.7159,134.55,134.49,2.6788]
[1725959411857,3.7159,134.55,134.52,3.7167]
[1725959412657,3.7157,134.56,134.49,16.9388]
[1725959414355,3.7157,134.56,134.53,3.7164]
[1725959414659,113.12745276,134.6,134.55,3.7158]
[1725959414957,135.41745276,134.6,134.55,3.76635443]
[1725959415152,22.29,134.61,134.53,14.26]
[1725959415463,22.29,134.61,134.54,2.6349]
[1725959415653,22.29,134.61,134.55,3.7279745]
[1725959415850,22.29,134.62,134.55,14.26]
[1725959416156,14.26,134.66,134.57,14.26]
[1725959416654,3.7135,134.64,134.6,3.7144]
[1725959416849,22.29,134.67,134.58,14.26]
[1725959417251,3.7133,134.65,134.61,3.7142]
[1725959417848,3.7133,134.65,134.58,14.26]
[1725959418354,3.7128,134.66,134.6,14.26]
[1725959418553,3.7128,134.66,134.61,2.686]
[1725959419253,3.7126,134.67,134.61,2.686]
[1725959419850,3.7126,134.67,134.63,3.7135]
[1725959420052,14.26,134.7,134.61,2.686]